Cogmind - Beta 14 @@@ ROGUE MODE // 2024.09.17 @ 03:32:48 Player: Dull Result: Destroyed by G-47 Trooper with Particle Gun Performance ------------- Evolutions (0) 0 Regions Visited (2) 400 Robots Destroyed (35) 175 Value Destroyed (719) 719 Prototype IDs (0) 0 Alien Tech Used (0) 0 Bonus (0) 0 TOTAL SCORE: 1294 Bonus ------- None Cogmind --------- Core Integrity 0/250 Matter 247/300 Energy 230/250 System Corruption 0% Temperature Hot (205) Movement Treading (240) Ox1 Location -10/Mines Parts ------- > --- POWER (1) -------- Ion Engine > --- PROPULSION (2) --- Light Treads Light Treads > --- UTILITY (2) ------ High-capacity Storage Unit Core Shielding > --- WEAPON (2) ------- Light Cannon > --- INVENTORY (20) --- Ion Engine Light Treads Heat Sink Improved Heat Sink Improved Terrain Scanner Light Armor Plating Hardened Light Armor Plating Hardened Light Armor Plating Hacking Suite Medium Laser Beam Rifle Beam Cannon Grenade Launcher Grenade Launcher Grenade Launcher Grenade Launcher Mining Laser Mining Claw Peak State ------------ > --- POWER ------------ Ion Engine > --- PROPULSION ------- Light Treads Light Treads > --- UTILITY ---------- Large Storage Unit Hardened Light Armor Plating > --- WEAPON ----------- Beam Cannon Light Cannon > --- INVENTORY -------- Light Ion Engine Light Ion Engine Wheel Improved Terrain Scanner Core Shielding Core Shielding Hardened Light Armor Plating Hardened Light Armor Plating Hardened Light Armor Plating Medium Laser Grenade Launcher Grenade Launcher Grenade Launcher Grenade Launcher Mining Claw [Rating: 10] Favorites ----------- Power Ion Engine Engine Ion Engine Propulsion Light Treads Treads Light Treads Leg Aluminum Leg Wheel Wheel Utility Hardened Light Armor Plating Device Improved Terrain Scanner Storage Large Storage Unit Protection Hardened Light Armor Plating Weapon Beam Cannon Energy Gun Medium Laser Energy Cannon Beam Cannon Ballistic Cannon Light Cannon Build | -11 -10 -10 ------- Run | Yrd Mat Min Slots Evolved . | . . . Power . | . . . Propulsion . | . . . Utility . | . . . Weapon . | . . . Parts Attached 25 | 4 12 9 Power 4 | . 3 1 Engine 4 | . 3 1 Core . | . . . Reactor . | . . . Propulsion 9 | 2 1 6 Treads 8 | 2 1 5 Leg . | . . . Wheel 1 | . . 1 Hover . | . . . Flight . | . . . Utility 7 | 1 5 1 Device 1 | 1 . . Storage 3 | . 3 . Processor . | . . . Hackware . | . . . Protection 3 | . 2 1 Artifact . | . . . Weapon 5 | 1 3 1 Energy Gun 2 | 1 1 . Energy Cannon 1 | . 1 . Ballistic Gun . | . . . Ballistic Cannon 2 | . 1 1 Launcher . | . . . Special Weapon . | . . . Impact Weapon . | . . . Slashing Weapon . | . . . Piercing Weapon . | . . . Special Melee Weapon . | . . . Unidentified Prototypes . | . . . Parts Lost 8 | . . 8 Power 1 | . . 1 Propulsion 4 | . . 4 Utility 1 | . . 1 Weapon 2 | . . 2 Highest Loss Streak 4 | . . 4 To Critical Strikes . | . . . Average Slot Usage (%) 99 | . 99 99 Engine 14 | . 14 14 Treads 25 | . 28 20 Wheel 2 | . . 7 Storage 14 | . 14 14 Protection 13 | . 13 14 Energy Gun 5 | . 7 . Energy Cannon 11 | . 10 13 Ballistic Cannon 11 | . 9 14 Peak Build Rating 10 | 9 10 10 Average Rating 9 | 7 9 9 On Entrance 8 | 6 9 10 Naked Turns . | . . . Heaviest Build 56 | 14 56 56 Greatest Support 40 | 40 40 40 Greatest Overweight (x) 2 | . 1 2 Average Overweight (x) . | . . 1 Largest Inventory Capacity 20 | 8 20 20 Average Capacity 16 | 8 14 20 Most Carried 20 | 6 17 20 Average Carried 13 | 2 13 15 Final Capacity 20 | 8 20 20 Final Carried 18 | 2 17 18 Class Distribution -------------------- 100% | Mutant Dominant Class ---------------- Mutant | -10/Materials Mutant | -10/Mines Resources | -11 -10 -10 ----------- Run | Yrd Mat Min Matter Collected 688 | 187 396 105 Remotely . | . . . Salvage Created 1049 | 110 785 154 Parts 54 | 3 43 8 Haulers Intercepted 2 | . 2 . Recyclers Shooed 1 | 1 . . Parts Field Recycled . | . . . Retrieved Matter . | . . . Parts Self-Destructed . | . . . Prevented . | . . . Kills | -11 -10 -10 ------- Run | Yrd Mat Min Combat Hostiles Destroyed 23 | . 19 4 Guns 3 | . 3 . Cannons 19 | . 15 4 Classes Destroyed 9 | 2 6 1 Worker 2 | . 2 . Tunneler 1 | 1 . . Hauler 2 | . 2 . Recycler 3 | 1 2 . Operator 1 | . 1 . Watcher 3 | . 3 . Swarmer 9 | . 9 . Grunt 12 | . 10 2 Sentry 2 | . . 2 Best Kill Streak 3 | 2 3 2 Combat Bots Only 3 | . 3 2 Max Kills in Single Turn 1 | 1 1 1 Gunslinging . | . . . Exploded . | . . . Melee . | . . . Uniques/NPCs Destroyed . | . . . Combat | -11 -10 -10 -------- Run | Yrd Mat Min Hostile Shots Fired 132 | . 64 68 Missed 33 | . 20 13 Damage Taken 1262 | . 506 756 Core 254 | . 132 122 Absorbed by Shields . | . . . Redirected to Shielding 13 | . . 13 Core Remaining (%) 100 | 100 . . Volleys Fired 94 | 6 60 28 Largest 2 | 2 2 2 Hottest 95 | 90 95 95 Shots Fired 177 | 12 120 45 Gun 34 | 12 22 . Cannon 143 | . 98 45 Launcher . | . . . Special . | . . . Kinetic 75 | . 49 26 Thermal 101 | 11 71 19 Explosive . | . . . Electromagnetic 1 | 1 . . Robot Hit Streak 6 | 6 6 6 Robot Miss Streak 7 | 2 7 5 Penetration Max . | . . . Secondary Targets . | . . . Shots Hit Robots 99 | 9 67 23 Core Hits 40 | 2 30 8 Critical Kills 1 | . 1 . Critical Parts Destroyed . | . . . Critical Strikes 7 | 1 6 . Burn 3 | 1 2 . Meltdown 1 | . 1 . Blast 3 | . 3 . Melee Attacks . | . . . Impact . | . . . Slashing . | . . . Piercing . | . . . Sneak Attacks . | . . . Combat Hostiles . | . . . Follow-up Attacks . | . . . Damage Inflicted 1758 | 108 1219 431 Guns 252 | 108 144 . Cannons 1500 | . 1069 431 Explosions . | . . . Melee . | . . . Ramming 6 | . 6 . Kinetic 850 | . 561 289 Thermal 890 | 96 652 142 Explosive . | . . . Electromagnetic 12 | 12 . . Impact . | . . . Slashing . | . . . Piercing . | . . . Highest Corruption . | . . . Average Corruption . | . . . Corruption Purged . | . . . Corruption Blocked . | . . . Overload Shots . | . . . Overflow Damage 12 | . 12 . Projectiles 12 | . 12 . Explosions . | . . . Melee . | . . . Knockbacks 9 | . 6 3 Impact . | . . . Kinetic 9 | . 6 3 Secondary . | . . . Self-Inflicted Damage . | . . . Shots . | . . . Rammed 2 | . 2 . Targets Rammed 2 | . 2 . Kicked . | . . . Crushed . | . . . Highest Temperature 610 | 102 610 237 Average Temperature 121 | 41 123 131 Received Heat Transfer 663 | . 120 543 Effects 15 | . 13 2 Shutdowns 1 | . 1 . Energy Bleed 2 | . 2 . Interference 4 | . 2 2 Matter Decay 1 | . 1 . Damage (minor) 1 | . 1 . Damage (major) 4 | . 4 . Damage (core) 2 | . 2 . Siege Activations . | . . . Robots Corrupted . | . . . Combat Hostiles . | . . . Parts Fried . | . . . Impact Corruptions . | . . . Robots Melted 2 | 1 1 . Combat Hostiles 1 | . 1 . Parts Melted 4 | . 3 1 Heat Transferred 2198 | 334 1568 296 Parts Sabotaged . | . . . Parts Stolen . | . . . Parts Stripped . | . . . Power Chain Reactions . | . . . Alert | -11 -10 -10 ------- Run | Yrd Mat Min Peak Influence 223 | 10 223 70 Initial 60 | . 6 60 Average 90 | 5 125 28 Maximum Alert Level 1 | . 1 . Low Security (%) 89 | 100 83 100 Level 1 10 | . 16 . Level 2 . | . . . Level 3 . | . . . Level 4 . | . . . Level 5 . | . . . High Security . | . . . Max Security . | . . . Squads Dispatched 5 | . 5 . Investigation 4 | . 4 . Extermination . | . . . Reinforcement 1 | . 1 . Assault . | . . . Garrison . | . . . Intercept . | . . . Searches Triggered . | . . . Construction Impeded . | . . . Haulers Reinforced . | . . . Active Scanning Responses . | . . . Cargo Convoy Interrupts . | . . . Stealth | -11 -10 -10 --------- Run | Yrd Mat Min Distress Signals 2 | . 2 . Communications Jammed . | . . . Distress Signals . | . . . Times Spotted 35 | . 29 6 Peak Tracking Total 3 | . 3 2 Tactical Retreats 2 | . 2 . Traps | -11 -10 -10 ------- Run | Yrd Mat Min Traps Triggered 4 | . 4 . Indirectly . | . . . Trap Hack Attempts . | . . . Triggered . | . . . Disarmed . | . . . Reprogrammed . | . . . Reused . | . . . Traps Extracted . | . . . Installed . | . . . Triggered . | . . . Machines | -11 -10 -10 ---------- Run | Yrd Mat Min Machines Disabled 1 | . 1 . Max in Single Turn 1 | . 1 . Machines Repaired . | . . . Machines Dismantled . | . . . Machines Sabotaged . | . . . Overloaded Fab Kills . | . . . Hacking | -11 -10 -10 --------- Run | Yrd Mat Min Machines Accessed 9 | . 9 . Terminals 7 | . 7 . Fabricators . | . . . Repair Stations . | . . . Recycling Units 2 | . 2 . Scanalyzers . | . . . Garrison Access . | . . . Total Hacks 23 | . 23 . Successful 6 | . 6 . Failed 16 | . 16 . Catastrophic 3 | . 3 . Database Lockouts 1 | . 1 . Manual 15 | . 15 . Terminals 18 | . 18 . Fabricators . | . . . Repair Stations . | . . . Recycling Units 5 | . 5 . Scanalyzers . | . . . Garrison Access . | . . . Terminal Hacks 6 | . 6 . Record 1 | . 1 . Robot Analysis 4 | . 4 . Hauler Manifests 1 | . 1 . Fabricator Hacks . | . . . Repair Station Hacks . | . . . Recycling Unit Hacks . | . . . Scanalyzer . | . . . Garrison Access Hacks . | . . . Unauthorized Hacks . | . . . Terminals . | . . . Fabricators . | . . . Repair Stations . | . . . Recycling Units . | . . . Scanalyzers . | . . . Garrison Access . | . . . Data Cores Recovered . | . . . Used . | . . . Hacking Detections 7 | . 7 . Full Trace Events 1 | . 1 . Feedback Events . | . . . Feedback Blocked . | . . . Robot Schematics Acquired . | . . . Robots Built . | . . . Authchips . | . . . Time . | . . . Total Robot Build Rating . | . . . Part Schematics Acquired . | . . . Parts Built . | . . . Authchips . | . . . Time . | . . . Total Part Build Rating . | . . . Parts Repaired . | . . . Time . | . . . Parts Recycled . | . . . Recycled Matter . | . . . Retrieved Matter . | . . . Retrieved Components . | . . . Parts Scanalyzed . | . . . Part Schematics Acquired . | . . . Parts Damaged . | . . . Bothacking | -11 -10 -10 ------------ Run | Yrd Mat Min Used RIF Installer . | . . . Robots Hacked . | . . . Non-combat . | . . . Combat . | . . . Robot Hacks Applied . | . . . Relay Couplers Released . | . . . Fabnet Peak Effective % . | . . . Robots Rewired . | . . . Allies Hacked . | . . . Hacks Repelled . | . . . Allies | -11 -10 -10 -------- Run | Yrd Mat Min Total Allies . | . . . Largest Group . | . . . Highest-Rated Group . | . . . Highest-Rated Ally . | . . . Total Orders . | . . . Ally Attacks . | . . . Total Damage . | . . . Kills . | . . . Allies Corrupted . | . . . Allies Melted . | . . . Intel | -11 -10 -10 ------- Run | Yrd Mat Min Robot Analysis Total 4 | . 4 . Derelict Logs Recovered 2 | . . 2 Drone Launches . | . . . Drone Recoveries . | . . . Exploration | -11 -10 -10 ------------- Run | Yrd Mat Min Turns Passed 3124 | 90 2025 1009 Spaces Moved 1386 | 41 1020 325 Core . | . . . Treads 1386 | 41 1020 325 Legs . | . . . Wheels . | . . . Hover . | . . . Flight . | . . . Fastest Speed 160 | 160 160 240 Average Speed 192 | 160 165 281 Slowest Speed 320 | 160 240 320 Overloaded Moves . | . . . Propulsion Burnouts . | . . . Robots Hopped . | . . . Cave-ins Triggered . | . . . Exploration Rate (%) 59 | 3 99 75 Regions Visited 2 Branch Regions 1 Pre-discovered Areas . | . . . Known Exits Taken . | . . . Unknown Exits Taken 2 | 1 1 . Scrap Searched 1 | . . 1 Spaces Dug . | . . . Terrain Destroyed . | . . . Melee . | . . . Projectile . | . . . AOE . | . . . Terrain Rammed . | . . . Walls Destroyed . | . . . Machines Disabled . | . . . Actions | -11 -10 -10 --------- Run | Yrd Mat Min Total 1672 | 54 1244 374 Wait 127 | . 121 6 Move 1384 | 40 1019 325 Hop . | . . . Pick Up 25 | . 19 6 Fast Attach 3 | 1 1 1 Attach 6 | . . 6 Detach . | . . . Swap 16 | 3 11 2 Drop 15 | 4 11 . Fire 94 | 6 60 28 Melee . | . . . Ram . | . . . Kick . | . . . Crush 2 | . 2 . Escape Stasis . | . . . Rewire . | . . . Trap . | . . . Miscellaneous . | . . . Route ------- -11/Scrapyard -10/Materials (discovered 4 exits: [*Mat x3] / [*Min]) -10/Mines (discovered 2 exits: [*Mat x2]) History --------- Turn | Location | Event 11 | -11/Scrapyard | Discovered new exit (range 3) 91 | -11/Scrapyard | Entered Materials 306 | -10/Materials | Build established: Mutant 1018 | -10/Materials | Discovered new exit (range 4) 1289 | -10/Materials | Discovered new exit (range 15) 1542 | -10/Materials | Discovered new exit (range 12) 1577 | -10/Materials | Central database locked down 1712 | -10/Materials | Core integrity fell below 50% 1914 | -10/Materials | Discovered new exit (range 11) 2116 | -10/Materials | Entered Mines 2158 | -10/Mines | Met a Derelict bent on vengeance 2299 | -10/Mines | Core integrity fell below 20% 2334 | -10/Mines | Lost 4 parts (1p2n1u) 2382 | -10/Mines | Discovered new exit (range 8) 2804 | -10/Mines | Learned Materials terminal intel 2810 | -10/Mines | Discovered new exit (range 14) 3125 | -10/Mines | Destroyed by G-47 Trooper with Particle Gun Last Messages --------------- 02843_ Y-45 Defender destroyed. 02844_ Wheel destroyed. 02844_ Critical hit (Burn: +37). 02855_ Imp. Ion Engine melted. 02855_ Y-45 Defender destroyed. 02861_ Acquired Lgt. Treads. 02871_ Acquired 4 matter. 02876_ Acquired 45 matter. 02880_ Acquired Lgt. Armor Plating. 02884_ Acquired Lgt. Cannon. 02890_ Acquired Lgt. Treads. 02895_ Acquired Beam Rifle. 02899_ Acquired Heat Sink. 03045_ K-01 Serf collects debris. 03099_ Critical hit (Burn: +37). 03103_ Beam Cannon destroyed. 03105_ Critical hit (Burn: +37). 03113_ Lgt. Cannon destroyed. 03119_ Destroyed Aluminum Leg. 03123_ Lgt. Treads destroyed. Map ----- +----------------------------------------------------+ | | | | | | | | | | | | | | | | | | | | | | | | | | | | | | | ???????????????????????????????????????? | | ???????????????????????????????????????? | | ???????????????????????????????????????? | | ???????????????????????????????????????? | | ?????###???????????????????????????????? | | ?????# ??????????????????????????????? | | ??????? ????????????????????????????? | | ????????? ???????????????????????????? | | ???????????" #####?????????????????????? | | ?????????????gg ##### #???????????????? | | ??????????????#@ #???????????????? | | ??????????????# #######???????????????? | | ??????????????# #?????????????????????? | | ????????????### ##????????????????????? | | ???????????## #????????????????????? | | ???????????# """ #????????????????????? | | ???????????# """ #????????????????????? | | ???????????## """ #????????????????????? | | ???????????## #????????????????????? | | ???????????# #????????????????????? | | ???????????# ##????????????????????? | | ???????????# ##?????????????????????? | | ??????????## ##?????????????????????? | | ?????????## ######????????????????? | | ????###### #????????????????? | | ???## #### #????????????????? | | ??## #### ##??# #????????????????? | | ??# ###??# #???# #????????????????? | | ?# ##????# #???# #????????????????? | | ?# #?????# #???# #????????????????? | | ?# #?????# #???# #????????????????? | | ?## ##?????# #???# #????????????????? | | ??#####??????# #???# ######???????????? | | ?????????????# #???# #???????????? | | ?????????????# ##### #### #???????????? | +----------------------------------------------------+ Best States ------------- Heat Dissipation 25 Energy Generation 10 Energy Capacity 250 Matter Stores 300 Matter Capacity 300 Sight Range 16 Terrain Scan Range 16 Terrain Scan Density 10 Armor Coverage 150 Core Shielding 20 Evasion (%) 40 Recoil Reduction 2 Item Schematics ----------------- None Robot Schematics ------------------ None Fabricated ------------ Nothing Alien Tech Used ----------------- None Achievements -------------- None Challenges ------------ None Game ------ Seed RefineryInsulatedLaser Manual? 0 Play Time 00:17:45 Cumulative 96.6 hours Start 2024.09.17 @ 03:18:04 End 2024.09.17 @ 03:32:48 Sessions 1 Manual Loads 0 Difficulty Rogue Special Mode None Game No. 134 Rogue 134 Adventurer 0 Explorer 0 Win Type - Total 1 Types 1/0/0/0/0/0/0/0/0 Lore% 20 Gallery% 56 Achievement% 44 Wizard Run 0 Options --------- Layout 0 ASCII 0 Keyboard 0 Movement Mouse Keybinds 1 Fullscreen 1 Font 18/TerminusBold Map View 76x50 Zoom Use 0% Tactical HUD 1 Map Filters NONE Filters NONE Steam 1 RUN: 0f7624e0-170b-4cfe-90a2-3c66f4cf17ba